fUSD/lending_fUSD_20250103
["ID","MTS","AMOUNT","RATE_DAILY","PERIOD"]
[347604895,1735944643740,-2829.11,0.00012063,2]
[347604896,1735944643749,-8380.37,0.00012063,2]
[347604897,1735944643759,-500.0,0.00012063,2]
[347604898,1735944643774,-572.81,0.00012063,2]
[347604899,1735944643789,-501.98,0.00012063,2]
[347604900,1735944643800,-4245.29,0.00012063,2]
[347604901,1735944643814,-500.0,0.00012063,2]
[347604902,1735944643828,-597.16,0.00012063,2]
[347604903,1735944643842,-1388.43,0.00012063,2]
[347604904,1735944643857,-998.94,0.00012063,2]
[347604905,1735944643870,-1271.44,0.00012063,2]
[347604906,1735944643883,-1908.44,0.00012063,2]
[347604907,1735944643895,-1000.0,0.00012063,2]
[347604908,1735944643909,-985.39,0.00012063,2]
[347604909,1735944643923,-1637.89,0.00012063,2]
[347604910,1735944643937,-836.84,0.00012063,2]
[347604911,1735944643953,-1885.344,0.00012073,2]
[347604912,1735944643968,-174.86,0.00012073,2]
[347604913,1735944643983,-150.0,0.00012093,2]
[347604914,1735944643998,-150.0,0.00012099,2]
[347604915,1735944644011,-500.0,0.00012099,2]
[347604916,1735944644024,-500.0,0.00012099,2]
[347604917,1735944644038,-1448.87,0.00012099,2]
[347604918,1735944644053,-500.0,0.00012099,2]
[347604919,1735944644067,-556.23,0.00012099,2]
[347604920,1735944644079,-1121.63959727,0.000121,2]
[347604921,1735944644091,-290.658471,0.000121,2]
[347604922,1735944644104,-23313.1063,0.000121,2]
[347604923,1735944644120,-222.66472992,0.000121,2]
[347604924,1735944644131,-150.0,0.0001213,2]
[347604925,1735944644142,-150.0,0.0001213,2]
[347604926,1735944644155,-3000.0,0.0001215,2]
[347604927,1735944644170,-207.3,0.00012163,2]
[347604928,1735944644184,-150.0,0.00012166,2]
[347604929,1735944644195,-500.0,0.00012169,2]
[347604930,1735944644208,-671.2439,0.00012172,2]
[347604931,1735944644220,-166.60393877,0.00012185,2]
[347604932,1735944644232,-1266.0,0.00012194,2]
[347604933,1735944644245,-2009.0,0.00012194,2]
[347604934,1735944644259,-212.331,0.00012194,2]
[347604935,1735944644273,-151.164,0.00012194,2]
[347604936,1735944644286,-634.0,0.00012194,2]
[347604937,1735944644300,-566.0,0.00012194,2]
[347604938,1735944644312,-1900.0,0.00012194,2]
[347604939,1735944644324,-919.0,0.00012194,2]
[347604940,1735944644337,-3775.0,0.00012194,2]
[347604941,1735944644349,-819.0,0.00012194,2]
[347604942,1735944644362,-1258.0,0.00012194,2]
[347604943,1735944644375,-3719.0,0.00012194,2]
[347604944,1735944644387,-536.0,0.00012194,2]
[347604945,1735944644400,-3892.0,0.00012194,2]
[347604946,1735944644413,-9605.0,0.00012194,2]
[347604947,1735944644426,-150.0,0.00012194,2]
[347604948,1735944644439,-1172.0,0.00012194,2]
[347604949,1735944644452,-500.0,0.00012196,2]
[347604950,1735944644465,-222.66472991,0.00012198,2]
[347604951,1735944644478,-500.0,0.00012199,2]
[347604952,1735944644490,-1681.2414,0.00012199,2]
[347604953,1735944644503,-13592.33027068,0.000122,7]
[347604954,1735944644521,-1655.59,0.000122,7]
[347604955,1735944644540,-4752.07972932,0.000122,7]
[347604956,1735944644553,-20000.0,0.000122,6]
[347604957,1735944644566,-13040.97657437,0.000122,5]
[347604958,1735944644585,-566.84138598,0.000122,5]
[347604959,1735944644599,-1650.7513512,0.000122,5]
[347604960,1735944644615,-1108.05999929,0.000122,5]
[347604961,1735944644631,-3633.37068916,0.000122,5]
[347604962,1735944644644,-453.71405594,0.000122,4]
[347604963,1735944644680,-1399.79399091,0.000122,4]
[347604964,1735944644695,-1731.53927155,0.000122,4]
[347604965,1735944644715,-4882.2537061,0.000122,4]
[347604966,1735944645547,-6532.6989755,0.000122,4]
[347604967,1735944645558,-432.09690828,0.000122,2]
[347604968,1735944645568,-1000.0,0.000122,2]
[347604969,1735944645581,-500.0,0.00012202,2]
[347604970,1735944645592,-150.0,0.00012202,2]
[347604971,1735944645601,-150.0,0.00012202,2]
[347604972,1735944645611,-150.0,0.00012238,2]
[347604973,1735944645620,-1083.39,0.00012258,2]
[347604974,1735944645630,-1252.44,0.00012258,2]
[347604975,1735944645640,-500.0,0.00012258,2]
[347604976,1735944645649,-1059.06,0.00012258,2]
[347604977,1735944645658,-500.0,0.00012258,2]
[347604978,1735944645667,-888.30258715,0.00012258,2]
[347604979,1735944645679,-354.85741285,0.00012258,2]
[347604980,1735944645688,-500.0,0.00012258,2]
[347604981,1735944645697,-500.0,0.00012258,2]
[347604983,1735944645706,-500.0,0.00012258,2]
[347604985,1735944645715,-500.0,0.00012258,2]
[347604986,1735944645724,-500.0,0.00012258,2]
[347604988,1735944645733,-328.19,0.00012258,2]
[347604990,1735944645742,-185.17258715,0.00012258,2]
[347604992,1735944645772,-314.82741285,0.00012258,2]
[347604994,1735944645782,-195.64271379,0.00012258,2]
[347604996,1735944645793,-304.35728621,0.00012258,2]
[347604998,1735944645803,-1.64271379,0.00012259,2]
[347605000,1735944645814,-498.35728621,0.00012259,2]
[347605002,1735944645823,-500.0,0.00012259,2]
[347605004,1735944645833,-500.0,0.00012259,2]
[347605006,1735944645842,-500.0,0.00012259,2]
[347605007,1735944645851,-500.0,0.00012259,2]
[347605008,1735944645861,-500.0,0.00012259,2]
[347605009,1735944645870,-425.91137823,0.00012259,2]
[347605010,1735944645882,-74.08862177,0.00012259,2]
[347605011,1735944645891,-335.27,0.00012259,2]
[347605012,1735944645901,-500.0,0.00012259,2]
[347605013,1735944645910,-702.3,0.00012259,2]
[347605014,1735944645920,-500.0,0.00012259,2]
[347605015,1735944645930,-500.0,0.00012259,2]
[347605016,1735944645940,-543.03,0.00012259,2]
[347605017,1735944645950,-500.0,0.00012259,2]
[347605018,1735944645959,-500.0,0.00012259,2]
[347605019,1735944645968,-500.0,0.00012259,2]
[347605020,1735944645978,-500.0,0.00012259,2]
[347605021,1735944645988,-639.71,0.00012259,2]
[347605022,1735944645998,-500.0,0.00012259,2]
[347605023,1735944646007,-500.0,0.00012259,2]
[347605024,1735944646018,-500.0,0.00012259,2]
[347605025,1735944646027,-500.0,0.00012259,2]
[347605026,1735944646036,-500.0,0.00012259,2]
[347605027,1735944646047,-500.0,0.00012259,2]
[347605028,1735944646057,-948.39097823,0.00012259,2]
[347605029,1735944646076,-85.49902177,0.00012259,2]
[347605030,1735944646087,-534.12,0.00012259,2]
[347605031,1735944646097,-500.0,0.00012259,2]
[347605032,1735944646107,-500.0,0.00012259,2]
[347605033,1735944646116,-500.0,0.00012259,2]
[347605034,1735944646126,-515.44,0.00012259,2]
[347605035,1735944646136,-1219.19,0.00012259,2]
[347605036,1735944646147,-500.0,0.00012259,2]
[347605037,1735944646157,-500.0,0.00012259,2]
[347605038,1735944646166,-500.0,0.00012259,2]
[347605039,1735944646176,-264.46270265,0.00012259,2]
[347605040,1735944646187,-351.97729735,0.00012259,2]
[347605041,1735944646197,-970.9,0.00012259,2]
[347605042,1735944646206,-390.58503692,0.00012259,2]
[347605043,1735944646215,-500.0,0.00012259,2]
[347605044,1735944646225,-3881.5,0.00012259,2]
[347605045,1735944646235,-500.0,0.00012259,2]
[347605046,1735944646245,-500.0,0.00012259,2]
[347605047,1735944646255,-500.0,0.00012259,2]
[347605048,1735944646264,-513.4,0.00012259,2]
[347605049,1735944646273,-500.0,0.00012259,2]
[347605050,1735944646283,-500.0,0.00012259,2]
[347605051,1735944646293,-500.0,0.00012259,2]
[347605052,1735944646302,-500.0,0.00012259,2]
[347605053,1735944646312,-500.0,0.00012259,2]
[347605054,1735944646322,-500.0,0.00012259,2]
[347605055,1735944646332,-293.379279,0.00012259,2]
[347605056,1735944646345,-640.79,0.00012259,2]
[347605057,1735944646354,-500.0,0.00012259,2]
[347605058,1735944646364,-500.0,0.00012259,2]
[347605059,1735944646374,-500.0,0.00012259,2]
[347605060,1735944646383,-500.0,0.00012259,2]
[347605061,1735944646392,-396.57981813,0.00012259,2]
[347605062,1735944646402,-500.0,0.00012259,2]
[347605063,1735944646412,-2365.55252984,0.00012259,2]
[347605064,1735944646737,-749.03747016,0.00012259,2]
[347605065,1735944646747,-1203.51,0.00012259,2]
[347605066,1735944646757,-500.0,0.00012259,2]
[347605067,1735944646768,-217.437242,0.00012259,2]
[347605068,1735944646778,-500.0,0.00012259,2]
[347605069,1735944646787,-500.0,0.00012259,2]
[347605070,1735944646797,-461.70913783,0.00012259,2]
[347605071,1735944646810,-38.29086217,0.00012259,2]
[347605072,1735944646821,-500.0,0.00012259,2]
[347605073,1735944646831,-500.0,0.00012259,2]
[347605074,1735944646840,-576.08,0.00012259,2]
[347605075,1735944646850,-626.98,0.00012259,2]
[347605076,1735944646859,-500.0,0.00012259,2]
[347605077,1735944646868,-2401.11,0.00012259,2]
[347605078,1735944646879,-500.0,0.00012259,2]
[347605079,1735944646888,-344.4025866,0.00012259,2]
[347605080,1735944646897,-500.0,0.00012259,2]
[347605081,1735944646906,-500.0,0.00012259,2]
[347605082,1735944646916,-332.22,0.00012259,2]
[347605083,1735944646924,-500.0,0.00012259,2]
[347605084,1735944646934,-500.0,0.00012259,2]
[347605085,1735944646943,-500.0,0.00012259,2]
[347605086,1735944646952,-500.0,0.00012259,2]
[347605087,1735944646961,-500.0,0.00012259,2]
[347605088,1735944646970,-500.0,0.00012259,2]
[347605089,1735944646979,-500.0,0.00012259,2]
[347605090,1735944646988,-173.46009345,0.00012259,2]
[347605091,1735944646997,-500.0,0.00012259,2]
[347605092,1735944647007,-500.0,0.00012259,2]
[347605093,1735944647016,-792.57,0.00012259,2]
[347605094,1735944647025,-500.0,0.00012259,2]
[347605095,1735944647034,-1193.61,0.00012259,2]
[347605096,1735944647043,-500.0,0.00012259,2]
[347605097,1735944647052,-500.0,0.00012259,2]
[347605098,1735944647061,-651.44,0.00012259,2]
[347605099,1735944647070,-500.0,0.00012259,2]
[347605100,1735944647079,-454.52765619,0.00012259,2]
[347605101,1735944647090,-211.22234381,0.00012259,2]
[347605102,1735944647099,-500.0,0.00012259,2]
[347605103,1735944647109,-500.0,0.00012259,2]
[347605104,1735944647118,-45.96426366,0.00012259,2]
[347605105,1735944647129,-497.41573634,0.00012259,2]
[347605106,1735944647139,-500.0,0.00012259,2]
[347605107,1735944647148,-500.0,0.00012259,2]
[347605108,1735944647157,-500.0,0.00012259,2]
[347605109,1735944647166,-500.0,0.00012259,2]
[347605110,1735944647176,-249.3227563,0.00012259,2]
[347605111,1735944647191,-250.6772437,0.00012259,2]
[347605112,1735944647201,-249.3227563,0.0001226,2]
[347605113,1735944647214,-250.6772437,0.0001226,2]
[347605114,1735944647225,-368.3427563,0.0001226,2]
[347605115,1735944647236,-131.6572437,0.0001226,2]
[347605116,1735944647245,-390.9348343,0.0001226,2]
[347605117,1735944647256,-109.0651657,0.0001226,2]
[347605118,1735944647265,-346.3148543,0.0001226,2]
[347605119,1735944647280,-153.6851457,0.0001226,2]
[347605120,1735944647289,-500.0,0.0001226,2]
[347605121,1735944647298,-146.3148543,0.0001226,2]
[347605122,1735944647589,-353.6851457,0.0001226,2]
[347605123,1735944647599,-500.0,0.0001226,2]
[347605124,1735944647609,-500.0,0.0001226,2]
[347605125,1735944647619,-500.0,0.0001226,2]
[347605126,1735944647628,-500.0,0.0001226,2]
[347605127,1735944647638,-520.08,0.0001226,2]
[347605128,1735944647648,-500.0,0.0001226,2]
[347605129,1735944647657,-500.0,0.0001226,2]
[347605130,1735944647667,-540.57,0.0001226,2]
[347605131,1735944647676,-500.0,0.0001226,2]
[347605132,1735944647686,-478.39,0.0001226,2]
[347605133,1735944647695,-500.0,0.0001226,2]
[347605134,1735944647705,-500.0,0.0001226,2]
[347605135,1735944647714,-500.0,0.0001226,2]
[347605136,1735944647723,-500.0,0.0001226,2]
[347605137,1735944647733,-597.49,0.0001226,2]
[347605138,1735944647743,-500.0,0.0001226,2]
[347605139,1735944647753,-500.0,0.0001226,2]
[347605140,1735944647762,-500.0,0.0001226,2]
[347605141,1735944647772,-89.7848543,0.0001226,2]
[347605142,1735944647788,-410.2151457,0.0001226,2]
[347605143,1735944647797,-500.0,0.0001226,2]
[347605144,1735944647807,-500.0,0.0001226,2]
[347605145,1735944647817,-500.0,0.0001226,2]
[347605146,1735944647827,-500.0,0.0001226,2]
[347605147,1735944647836,-779.27,0.0001226,2]
[347605148,1735944647845,-500.0,0.0001226,2]
[347605149,1735944647855,-500.0,0.0001226,2]
[347605150,1735944647866,-500.0,0.0001226,2]
[347605151,1735944647875,-500.0,0.0001226,2]
[347605152,1735944647885,-500.0,0.0001226,2]
[347605153,1735944647895,-500.0,0.0001226,2]
[347605154,1735944647904,-500.0,0.0001226,2]
[347605155,1735944647914,-100.75004237,0.0001226,2]
[347605156,1735944647925,-399.24995763,0.0001226,2]
[347605157,1735944647935,-500.0,0.0001226,2]
[347605158,1735944647944,-500.0,0.0001226,2]
[347605159,1735944647953,-500.0,0.0001226,2]
[347605160,1735944647963,-500.0,0.0001226,2]
[347605161,1735944647973,-500.0,0.0001226,2]
[347605162,1735944647982,-500.0,0.0001226,2]
[347605163,1735944647991,-500.0,0.0001226,2]
[347605164,1735944648003,-500.0,0.0001226,2]
[347605165,1735944648012,-500.0,0.0001226,2]
[347605166,1735944648021,-628.12,0.0001226,2]
[347605167,1735944648031,-500.0,0.0001226,2]
[347605168,1735944648041,-500.0,0.0001226,2]
[347605169,1735944648050,-500.0,0.0001226,2]
[347605170,1735944648059,-500.0,0.0001226,2]
[347605171,1735944648068,-500.0,0.0001226,2]
[347605172,1735944648077,-500.0,0.0001226,2]
[347605173,1735944648087,-500.0,0.0001226,2]
[347605174,1735944648097,-488.52,0.0001226,2]
[347605175,1735944648107,-500.0,0.0001226,2]
[347605176,1735944648117,-608.05,0.0001226,2]
[347605177,1735944648127,-500.0,0.0001226,2]
[347605178,1735944648136,-541.48,0.0001226,2]
[347605179,1735944648146,-642.67,0.0001226,2]
[347605180,1735944648156,-500.0,0.0001226,2]
[347605181,1735944648165,-452.59,0.0001226,2]
[347605182,1735944648175,-500.0,0.0001226,2]
[347605183,1735944648185,-500.0,0.0001226,2]
[347605184,1735944648195,-500.0,0.0001226,2]
[347605185,1735944648398,-500.0,0.0001226,2]
[347605186,1735944648408,-500.0,0.0001226,2]
[347605187,1735944648418,-500.0,0.0001226,2]
[347605188,1735944648428,-500.0,0.0001226,2]
[347605189,1735944648438,-500.0,0.0001226,2]
[347605190,1735944648448,-500.0,0.0001226,2]
[347605191,1735944648457,-547.16,0.0001226,2]
[347605192,1735944648467,-500.0,0.0001226,2]
[347605193,1735944648477,-500.0,0.0001226,2]
[347605194,1735944648486,-500.0,0.0001226,2]
[347605195,1735944648495,-500.0,0.0001226,2]
[347605196,1735944648505,-500.0,0.0001226,2]
[347605197,1735944648514,-550.29,0.0001226,2]
[347605198,1735944648523,-217.29,0.0001226,2]
[347605199,1735944648532,-500.0,0.0001226,2]
[347605200,1735944648542,-500.0,0.0001226,2]
[347605201,1735944648551,-500.0,0.0001226,2]
[347605202,1735944648561,-500.0,0.0001226,2]
[347605203,1735944648571,-500.0,0.0001226,2]
[347605204,1735944648585,-500.0,0.0001226,2]
[347605205,1735944648594,-500.0,0.0001226,2]
[347605206,1735944648603,-500.0,0.0001226,2]
[347605207,1735944648617,-595.74,0.0001226,2]
[347605208,1735944648627,-500.0,0.0001226,2]
[347605209,1735944648637,-500.0,0.0001226,2]
[347605210,1735944648647,-500.0,0.0001226,2]
[347605211,1735944648658,-500.0,0.0001226,2]
[347605212,1735944648668,-500.0,0.0001226,2]
[347605213,1735944648677,-500.0,0.0001226,2]
[347605214,1735944648687,-500.0,0.0001226,2]
[347605215,1735944648697,-500.0,0.0001226,2]
[347605216,1735944648707,-500.0,0.0001226,2]
[347605217,1735944648716,-500.0,0.0001226,2]
[347605218,1735944648725,-500.0,0.0001226,2]
[347605219,1735944648735,-500.0,0.0001226,2]
[347605220,1735944648744,-500.0,0.0001226,2]
[347605221,1735944648754,-500.0,0.0001226,2]
[347605222,1735944648764,-500.0,0.0001226,2]
[347605223,1735944648773,-500.0,0.0001226,2]
[347605224,1735944648782,-500.0,0.0001226,2]
[347605225,1735944648792,-500.0,0.0001226,2]
[347605226,1735944648801,-500.0,0.0001226,2]
[347605227,1735944648811,-500.0,0.0001226,2]
[347605228,1735944648820,-500.0,0.0001226,2]
[347605229,1735944648830,-500.0,0.0001226,2]
[347605230,1735944648839,-500.0,0.0001226,2]
[347605231,1735944648849,-500.0,0.0001226,2]
[347605232,1735944648858,-500.0,0.0001226,2]
[347605233,1735944648867,-500.0,0.0001226,2]
[347605234,1735944648877,-500.0,0.0001226,2]
[347605235,1735944648886,-582.9,0.0001226,2]
[347605236,1735944648895,-500.0,0.0001226,2]
[347605237,1735944648905,-569.38,0.0001226,2]
[347605238,1735944648914,-500.0,0.0001226,2]
[347605239,1735944648924,-500.0,0.0001226,2]
[347605240,1735944648933,-567.0,0.0001226,2]
[347605241,1735944648943,-500.0,0.0001226,2]
[347605242,1735944648952,-500.0,0.0001226,2]
[347605243,1735944648962,-500.0,0.0001226,2]
[347605244,1735944648971,-636.52,0.0001226,2]
[347605245,1735944648980,-645.78,0.0001226,2]
[347605246,1735944648990,-500.0,0.0001226,2]
[347605247,1735944648999,-500.0,0.0001226,2]
[347605248,1735944649008,-500.0,0.0001226,2]
[347605249,1735944649018,-500.0,0.0001226,2]
[347605250,1735944649027,-500.0,0.0001226,2]
[347605251,1735944649037,-500.0,0.0001226,2]
[347605252,1735944649047,-500.0,0.0001226,2]
[347605253,1735944649056,-500.0,0.0001226,2]
[347605254,1735944649066,-500.0,0.0001226,2]
[347605255,1735944649075,-500.0,0.0001226,2]
[347605256,1735944649085,-340.17,0.0001226,2]
[347605257,1735944649095,-500.0,0.0001226,2]
[347605258,1735944649104,-607.64,0.0001226,2]
[347605259,1735944649114,-500.0,0.0001226,2]
[347605260,1735944649123,-500.0,0.0001226,2]
[347605261,1735944649133,-753.26,0.0001226,2]
[347605262,1735944649142,-500.0,0.0001226,2]
[347605263,1735944649152,-500.0,0.0001226,2]
[347605264,1735944649162,-500.0,0.0001226,2]
[347605265,1735944649172,-497.18,0.0001226,2]
[347605266,1735944649181,-521.03,0.0001226,2]
[347605267,1735944649191,-622.83196162,0.0001226,2]
[347605268,1735944649200,-676.62,0.0001226,2]
[347605269,1735944649210,-900.15,0.0001226,2]
[347605270,1735944649219,-500.0,0.0001226,2]
[347605271,1735944649229,-500.0,0.0001226,2]
[347605272,1735944649239,-500.0,0.0001226,2]
[347605273,1735944649248,-500.0,0.0001226,2]
[347605274,1735944649257,-500.0,0.0001226,2]
[347605275,1735944649267,-500.0,0.0001226,2]
[347605276,1735944649276,-500.0,0.0001226,2]
[347605277,1735944649287,-500.0,0.0001226,2]
[347605278,1735944649297,-500.0,0.0001226,2]
[347605279,1735944649307,-500.0,0.0001226,2]
[347605280,1735944649316,-500.0,0.0001226,2]
[347605281,1735944649325,-500.0,0.0001226,2]
[347605282,1735944649335,-500.0,0.0001226,2]
[347605283,1735944649343,-293.84,0.0001226,2]
[347605284,1735944649352,-500.0,0.0001226,2]
[347605285,1735944649362,-500.0,0.0001226,2]
[347605286,1735944649371,-500.0,0.0001226,2]
[347605287,1735944649380,-683.76,0.0001226,2]
[347605288,1735944649389,-500.0,0.0001226,2]
[347605289,1735944649398,-500.0,0.0001226,2]
[347605290,1735944649408,-500.0,0.0001226,2]
[347605291,1735944649417,-500.0,0.0001226,2]
[347605292,1735944649426,-500.0,0.0001226,2]
[347605293,1735944649435,-500.0,0.0001226,2]
[347605294,1735944649445,-500.0,0.0001226,2]
[347605295,1735944649456,-663.45,0.0001226,2]
[347605296,1735944649466,-500.0,0.0001226,2]
[347605297,1735944649475,-500.0,0.0001226,2]
[347605298,1735944649485,-500.0,0.0001226,2]
[347605299,1735944649495,-500.0,0.0001226,2]
[347605300,1735944649506,-500.0,0.0001226,2]
[347605301,1735944649516,-500.0,0.0001226,2]
[347605302,1735944649526,-501.68,0.0001226,2]
[347605303,1735944649536,-500.0,0.0001226,2]
[347605304,1735944649545,-649.72,0.0001226,2]
[347605305,1735944649555,-500.0,0.0001226,2]
[347605306,1735944649565,-596.33,0.0001226,2]
[347605307,1735944649578,-500.0,0.0001226,2]
[347605308,1735944649587,-628.86,0.0001226,2]
[347605309,1735944649597,-3506.689159,0.00012269,2]
[347605310,1735944649607,-4392.0490285,0.00012269,2]
[347605311,1735944649617,-500.0,0.00012272,2]
[347605312,1735944649626,-500.0,0.00012272,2]
[347605313,1735944649637,-400.48,0.00012272,2]
[347605314,1735944649646,-500.0,0.00012272,2]
[347605315,1735944649655,-500.0,0.00012272,2]
[347605316,1735944649665,-500.0,0.00012272,2]
[347605317,1735944649674,-500.0,0.00012272,2]
[347605318,1735944649683,-500.0,0.00012272,2]
[347605319,1735944649693,-501.21,0.00012272,2]
[347605320,1735944649703,-526.45,0.00012272,2]
[347605321,1735944649712,-500.0,0.00012272,2]
[347605322,1735944649722,-386.54,0.00012272,2]
[347605323,1735944649731,-397.62,0.00012272,2]
[347605324,1735944649742,-500.0,0.00012272,2]
[347605325,1735944649751,-1274.43,0.00012272,2]
[347605326,1735944649760,-884.06,0.00012272,2]
[347605327,1735944649770,-1246.61,0.00012272,2]
[347605328,1735944649779,-500.0,0.00012273,2]
[347605329,1735944649789,-500.0,0.00012273,2]
[347605330,1735944649799,-500.0,0.00012273,2]
[347605331,1735944649809,-500.0,0.00012273,2]
[347605332,1735944649818,-500.0,0.00012273,2]
[347605333,1735944649829,-823.96,0.00012273,2]
[347605334,1735944649839,-627.7,0.00012273,2]
[347605335,1735944649848,-754.73,0.00012273,2]
[347605336,1735944649857,-500.0,0.00012273,2]
[347605337,1735944649867,-797.41,0.00012273,2]
[347605338,1735944649876,-500.0,0.00012273,2]
[347605339,1735944649886,-539.85,0.00012273,2]
[347605340,1735944649896,-381.61,0.00012273,2]
[347605341,1735944649906,-698.58,0.00012273,2]
[347605342,1735944649916,-463.69,0.00012273,2]
[347605343,1735944649926,-500.0,0.00012273,2]
[347605344,1735944649936,-500.0,0.00012273,2]
[347605345,1735944649945,-500.0,0.00012273,2]
[347605346,1735944649955,-150.0,0.00012274,2]
[347605347,1735944649964,-150.0,0.00012274,2]
[347605348,1735944649974,-150.0,0.00012274,2]
[347605349,1735944649983,-150.0,0.00012274,2]
[347605350,1735944649993,-150.0,0.00012274,2]
[347605351,1735944650002,-261.98782876,0.00012274,2]
[347605352,1735944650013,-150.0,0.00012274,2]
[347605353,1735944650023,-11625.3841039,0.00012277,2]
[347605354,1735944650033,-218.6,0.00012285,2]
[347605355,1735944650043,-10904.7163856,0.00012292,2]
[347605356,1735944650053,-3279.5713764,0.00012292,2]
[347605357,1735944650062,-4107.5891317,0.00012292,2]
[347605358,1735944650072,-157.00503,0.00012297,2]
[347605359,1735944650084,-500.0,0.00012297,2]
[347605360,1735944650093,-500.0,0.00012297,2]
[347605361,1735944650103,-7500.0,0.00012297,2]
[347605362,1735944650112,-500.0,0.00012297,2]
[347605363,1735944650122,-500.0,0.00012297,2]
[347605364,1735944650131,-651.13,0.00012297,2]
[347605365,1735944650141,-1256.39,0.00012297,2]
[347605366,1735944650150,-1278.92,0.00012297,2]
[347605367,1735944650159,-977.55,0.00012297,2]
[347605368,1735944650169,-3416.62,0.00012297,2]
[347605369,1735944650177,-1755.46,0.00012297,2]
[347605370,1735944650187,-7899.51,0.00012297,2]
[347605371,1735944650196,-5465.71,0.00012297,2]
[347605372,1735944650206,-500.0,0.00012297,2]
[347605373,1735944650215,-2009.01,0.00012297,2]
[347605374,1735944650224,-4420.7,0.00012297,2]
[347605375,1735944650234,-1002.0,0.00012298,2]
[347605376,1735944650244,-1114.08161821,0.00012298,3]
[347605377,1735944650254,-1114.08161821,0.00012298,3]
[347605378,1735944650262,-1114.08161821,0.00012298,3]
[347605379,1735944650272,-1114.08161821,0.00012298,3]
[347605380,1735944650281,-53241.23819396,0.00012298,2]
[347605381,1735944650290,-138946.71516674,0.00012298,2]
[347605382,1735944650305,-378.8694,0.00012298,2]
[347605390,1735945773497,-370.28,8.776e-05,2]
[347605391,1735945773518,-199.5,0.00010137,2]
[347605392,1735945773539,-17.81489561,0.000106,2]
[347605394,1735945832191,-275.22,0.00010137,2]
[347605395,1735945832201,-232.18510439,0.000106,2]
[347605396,1735945832211,-1000.0,0.00010635,2]
[347605397,1735945832222,-3018.0,0.00010742,2]
[347605398,1735945832231,-4618.21329193,0.000109,2]
[347605399,1735945832244,-57.41090439,0.000109,2]
[347605400,1735945832254,-300.0,0.000109,3]
[347605401,1735945832263,-150.0,0.00010959,2]
[347605402,1735945832273,-220.80005693,0.00010971,2]
[347605403,1735945832284,-1891.03060736,0.00010971,2]
[347605404,1735945832297,-474.8,0.00010971,2]
[347605405,1735945832309,-760.88038281,0.00010971,2]
[347605406,1735945832318,-3461.54607945,0.00010971,2]
[347605407,1735945832327,-200.0,0.00010973,2]
[347605408,1735945832337,-11981.9994126,0.00010975,2]
[347605409,1735945832351,-9098.15095114,0.00010975,2]
[347605410,1735945832365,-303.04274977,0.00010975,2]
[347605411,1735945832378,-11287.75660762,0.00010975,2]
[347605412,1735945832391,-34706.14402189,0.00010975,2]
[347605413,1735945832403,-3347.5110471,0.00010976,2]
[347605414,1735945832413,-5464.26849754,0.00010978,2]